bitfinex/quotes_ETHUSD_20251221
["timestamp","ask_amount","ask_price","bid_price","bid_amount"]
[1766318287653,0.17732,2999.4,2999.0,0.306]
[1766318289123,0.001,2999.4,2999.0,0.306]
[1766318289525,0.001,2999.7,2999.0,0.306]
[1766318289825,1.4042,2999.7,2999.0,0.306]
[1766318292358,1.4032,2999.6,2999.0,0.306]
[1766318294160,1.4032,2999.6,2998.9,0.002]
[1766318294361,1.4032,2999.6,2998.9,0.01332445]
[1766318294654,1.4032,2999.6,2999.0,0.306]
[1766318296671,1.4032,2999.6,2999.0,0.308]
[1766318296863,1.4042,2999.6,2999.0,0.308]
[1766318297975,0.001,2999.6,2999.0,0.308]
[1766318298175,1.4042,2999.6,2999.0,0.308]
[1766318299177,1.4032,2999.5,2999.0,0.308]
[1766318300875,0.001,2999.6,2999.0,0.308]
[1766318301970,0.001,2999.6,2999.1,0.01332445]
[1766318302164,0.001,2999.6,2999.1,0.32132445]
[1766318302584,0.001,2999.6,2999.1,0.01332445]
[1766318302744,0.001,2999.6,2999.2,0.32132445]
[1766318303673,0.001,2999.9,2999.3,0.01332445]
[1766318304180,0.001,2999.9,2999.5,0.01332445]
[1766318304770,0.001,2999.9,2999.6,0.32132445]
[1766318325016,1.4653,2999.9,2999.6,0.32132445]
[1766318332826,0.001,2999.9,2999.6,0.32132445]
[1766318342947,1.4653,2999.9,2999.6,0.32132445]
[1766318347956,0.001,2999.9,2999.6,0.32132445]
[1766318348426,0.002,3000.1,2999.6,0.32132445]
[1766318350143,0.002,3000.1,2999.7,0.01332445]
[1766318351328,0.002,3000.1,2999.8,0.32132445]
[1766318355141,1.3865,3000.1,2999.8,0.32132445]
[1766318368591,1.3865,3000.1,2999.8,0.32232445]
[1766318369095,1.3865,3000.1,2999.8,0.001]
[1766318369391,1.3865,3000.1,2999.9,0.32232445]
[1766318371599,0.002,3000.1,2999.9,0.32232445]
[1766318371900,0.002,3000.1,2999.8,0.001]
[1766318372095,0.002,3000.1,2999.8,0.32332445]
[1766318381818,0.002,3000.1,2999.8,0.001]
[1766318382191,0.002,3000.1,2999.9,0.32332445]
[1766318387719,0.002,3000.1,2999.8,0.001]
[1766318387920,0.002,3000.1,2999.8,0.13455525]
[1766318391941,0.06816303,3000.5,2999.8,0.13455525]
[1766318392106,1.3776,3000.7,2999.8,0.001]
[1766318392306,1.51114901,3000.6,2999.9,0.13354901]
[1766318393108,1.3766,3000.5,2999.9,0.13354901]
[1766318393837,0.002,3000.1,2999.9,0.13354901]
[1766318401746,0.13454901,3000.6,2999.9,0.13354901]
[1766318402655,1.3766,3001.5,2999.9,0.13354901]
[1766318402958,0.13354901,3001.0,2999.9,0.1586349]
[1766318403249,0.4354,3001.5,2999.8,0.001]
[1766318403449,1.3766,3001.2,2999.8,0.001]
[1766318403616,1.3766,3001.2,3000.0,0.50975842]
[1766318404635,0.04164723,3001.4,3000.0,0.50975842]
[1766318404842,0.04165139,3001.1,3000.0,0.50975842]
[1766318405123,0.4386,3000.7,3000.0,0.50975842]
[1766318405323,0.04165139,3001.1,3000.0,0.50975842]
[1766318405324,1.4287,3000.4,3000.0,0.50975842]
[1766318405645,0.50975842,3000.7,3000.0,0.50975842]
[1766318406046,0.4386,3000.5,2999.8,0.001]
[1766318406246,0.50975842,3000.7,2999.9,0.50975842]
[1766318406440,0.9901,3000.2,2999.8,0.001]
[1766318406639,1.4287,3000.1,2999.8,0.001]
[1766318406835,1.4287,3000.1,2999.8,0.51075842]
[1766318407227,1.4287,3000.1,2999.9,0.001]
[1766318408222,7.84552,3001.0,2999.9,0.001]
[1766318408444,0.51075842,3000.6,2999.9,0.001]
[1766318409050,0.9901,3000.5,2999.9,0.001]
[1766318409251,0.9901,3000.3,2999.9,0.001]
[1766318409447,1.4287,3000.3,2999.9,0.001]
[1766318412646,0.51075842,3000.6,2999.9,0.001]
[1766318412855,1.93945842,3000.6,2999.9,0.001]
[1766318413258,2.13340426,3000.6,2999.9,0.001]
[1766318413971,0.70470426,3000.6,2999.9,0.001]
[1766318414172,0.51075842,3000.6,2999.9,0.001]
[1766318414375,0.4386,3000.4,2999.9,0.001]
[1766318414548,1.4287,3000.4,2999.9,0.001]
[1766318418485,0.002,3000.6,2999.9,0.001]
[1766318418861,0.002,3000.6,3000.0,0.51075842]
[1766318424477,1.4307,3000.6,3000.0,0.51075842]
[1766318424681,1.4287,3000.5,3000.0,0.51075842]
[1766318425472,0.002,3000.6,3000.0,0.51075842]
[1766318426060,1.3651,3000.6,3000.0,0.51075842]
[1766318426461,0.955,3000.5,3000.0,0.51075842]
[1766318426685,0.4081,3000.4,3000.0,0.51075842]
[1766318430306,0.4081,3000.4,3000.0,0.51175842]
[1766318430700,0.4081,3000.4,3000.0,0.001]
[1766318431205,0.002,3000.6,3000.0,0.001]
[1766318431585,0.002,3000.6,3000.1,0.51175842]
[1766318436599,1.3581,3000.5,3000.1,0.51175842]
[1766318437696,0.4132,3000.4,3000.1,0.51175842]
[1766318438005,0.002,3000.6,3000.1,0.51175842]
[1766318438006,0.9449,3000.5,3000.1,0.51175842]
[1766318438179,0.4152,3000.6,3000.1,0.51175842]
[1766318438892,1.3601,3000.6,3000.1,0.51175842]
[1766318442503,1.3581,3000.5,3000.1,0.51175842]
[1766318444630,0.9449,3000.5,3000.0,0.001]
[1766318444922,0.002,3000.6,3000.0,0.001]
[1766318445125,0.4132,3000.4,3000.0,0.001]
[1766318445293,1.3581,3000.2,3000.0,0.001]
[1766318446296,0.13355525,3000.5,3000.0,0.001]
[1766318446601,1.3581,3000.2,3000.0,0.001]
[1766318448226,0.04166527,3000.1,2998.5,0.01332445]
[1766318448439,0.4132,3000.4,2998.5,0.39575936]
[1766318448632,0.4132,3000.0,2998.5,0.39575936]
[1766318448813,0.4132,2999.8,2998.5,0.39575936]
[1766318449012,1.3581,2999.8,2999.3,0.13356596]
[1766318449944,0.13356596,3000.3,2999.3,0.13356596]
[1766318450107,0.9449,3000.1,2999.3,0.13356596]
[1766318450312,1.3581,3000.0,2999.3,0.13356596]
[1766318453213,1.3581,3000.0,2998.5,0.01332445]
[1766318453532,1.3581,3000.0,2998.6,0.13356596]
[1766318453842,1.49166596,3000.3,2998.7,0.01332445]
[1766318454017,1.3581,3000.2,2998.7,0.01332445]
[1766318454542,1.3581,3000.2,2998.8,0.13356596]
[1766318455415,1.3581,3000.2,2999.3,0.001]
[1766318456612,1.3581,3000.2,2999.3,0.13456596]
[1766318457026,0.4132,3000.1,2999.3,0.13456596]
[1766318457213,0.13356596,3000.3,2999.3,0.13456596]
[1766318457432,1.3581,3000.2,2999.3,0.13456596]
[1766318462239,0.13356596,3000.3,2999.3,0.13456596]
[1766318462542,0.002,3000.6,2999.3,0.001]
[1766318462729,0.002,3000.6,2999.4,0.28]
[1766318463745,0.002,3000.2,2999.4,0.28]
[1766318466925,0.002,3000.2,2999.4,0.30510838]
[1766318467250,0.002,3000.2,2999.4,0.28]
[1766318467758,0.002,3000.2,2999.3,0.001]
[1766318467960,0.002,3000.2,2999.4,0.01332445]
[1766318468124,0.002,3000.2,2999.4,0.29332445]
[1766318469125,0.002,3000.2,2999.4,0.01332445]
[1766318469325,0.002,3000.2,2999.5,0.29332445]
[1766318477577,0.002,3000.2,2999.6,0.281]
[1766318478277,0.002,3000.2,2999.7,0.29332445]
[1766318480372,0.002,3000.6,2999.7,0.29332445]
[1766318487782,1.7467,3001.0,2999.7,0.29332445]
[1766318487984,0.17467,3000.9,2999.7,0.29332445]
[1766318488165,1.64137,3000.9,2999.7,0.29332445]
[1766318492295,1.64337,3000.9,2999.7,0.29332445]
[1766318496792,0.17667,3000.9,2999.7,0.29332445]
[1766318496999,0.002,3000.9,2999.7,0.29332445]
[1766318497498,0.002,3000.9,2999.8,0.02509532]
[1766318497697,0.002,3000.9,2999.7,0.3066489]
[1766318497998,0.002,3000.9,2999.7,0.01332445]
[1766318498200,0.002,3000.9,2999.8,0.3066489]
[1766318500894,0.002,3000.9,2999.9,0.01332445]
[1766318501595,0.002,3000.9,3000.0,0.3066489]
[1766318511418,1.3667,3000.9,3000.0,0.3066489]
[1766318511593,1.3647,3000.8,3000.0,0.3066489]
[1766318512313,1.3647,3000.8,3000.1,0.282]
[1766318513189,0.9247,3000.6,2999.7,0.01332445]
[1766318513382,1.3647,3000.5,3000.0,0.3066489]
[1766318514299,0.002,3000.9,3000.0,0.3066489]
[1766318514501,0.44,3000.7,3000.0,0.3066489]
[1766318514693,1.3647,3000.7,3000.0,0.3066489]
[1766318515402,0.002,3000.9,3000.0,0.3066489]
[1766318515987,0.9247,3000.8,3000.0,0.3066489]
[1766318516187,0.44,3000.7,3000.0,0.3066489]
[1766318516507,1.3647,3000.7,3000.0,0.3066489]
[1766318518232,1.3647,3000.7,3000.0,0.3076489]
[1766318518596,1.3647,3000.7,3000.0,0.001]
[1766318518799,1.3647,3000.7,3000.1,0.3076489]
[1766318520323,0.002,3000.8,3000.1,0.3076489]
[1766318521834,0.002,3000.9,3000.1,0.3076489]
[1766318529847,0.3096489,3001.5,3000.1,0.3076489]
[1766318530051,0.002,3001.5,3000.2,0.01332445]
[1766318530348,0.002,3001.7,3000.4,0.01332445]
[1766318530529,0.002,3001.7,3000.5,0.282]
[1766318531231,1.3946,3001.6,3000.6,0.282]
[1766318531436,1.3946,3001.6,3000.7,0.282]
[1766318531834,0.002,3001.7,3000.7,0.282]
[1766318532034,0.002,3001.7,3000.8,0.282]
[1766318532334,0.04364306,3001.7,3000.8,0.282]
[1766318533327,1.43824306,3001.7,3000.8,0.282]
[1766318533953,0.002,3001.6,3000.8,0.282]
[1766318540328,0.002,3001.6,3000.8,0.563]
[1766318541552,0.002,3001.6,3000.8,0.281]
[1766318541856,0.002,3001.6,3000.9,0.563]
[1766318542861,1.3966,3001.6,3000.9,0.563]
[1766318545066,1.4066,3001.5,3000.9,0.844]
[1766318545564,1.4066,3001.5,3000.9,0.281]
[1766318545972,1.4066,3001.5,3001.0,0.844]
[1766318548043,0.002,3001.6,3001.0,0.844]
[1766318548467,1.4086,3001.6,3001.0,0.844]
[1766318548771,0.002,3001.5,3001.0,0.844]
[1766318551075,1.4086,3001.5,3001.0,0.844]
[1766318555673,1.4096,3001.5,3001.0,0.844]
[1766318556584,1.4096,3001.5,3001.1,0.28]
[1766318557287,1.4096,3001.5,3001.1,1.124]
[1766318557902,0.002,3001.5,3001.2,0.28]
[1766318558971,0.002,3001.5,3001.2,0.41348884]
[1766318559988,0.002,3001.5,3001.3,0.28]
[1766318561586,1.4076,3001.4,3001.3,0.28]
[1766318561782,0.002,3001.5,3001.3,0.28]
[1766318562574,1.4096,3001.5,3001.3,0.28]
[1766318563683,0.002,3001.5,3001.3,0.28]
[1766318566007,0.002,3001.7,3001.3,0.28]
[1766318566582,0.002,3001.6,3001.3,0.28]
[1766318569233,1.4076,3002.1,3001.3,0.28]
[1766318569511,0.4317,3002.1,3001.3,0.28]
[1766318569816,1.4076,3001.9,3001.4,0.28]
[1766318570184,0.9759,3002.1,3001.4,0.28]
[1766318570384,1.4076,3002.1,3001.4,0.28]
[1766318570813,0.002,3002.3,3001.4,0.28]
[1766318571014,0.9759,3002.2,3001.4,0.28]
[1766318571214,1.4076,3002.1,3001.4,0.28]
[1766318573514,0.002,3002.3,3001.4,0.28]
[1766318573719,0.4317,3001.9,3001.4,0.28]
[1766318573918,0.9759,3001.8,3001.4,0.28]
[1766318574812,0.9759,3001.8,3001.4,0.281]
[1766318575322,0.9759,3001.8,3001.4,0.001]
[1766318575517,1.4076,3001.8,3001.5,0.281]
[1766318575822,0.002,3002.2,3001.5,0.281]
[1766318576321,1.4076,3002.1,3001.5,0.281]
[1766318576505,0.002,3002.2,3001.5,0.281]
[1766318576690,1.4076,3002.1,3001.5,0.281]
[1766318577294,0.4317,3002.0,3001.5,0.281]
[1766318577489,1.4076,3002.0,3001.5,0.281]
[1766318580194,0.9759,3002.1,3001.5,0.281]
[1766318580392,1.4076,3001.9,3001.5,0.281]
[1766318582521,1.4096,3002.2,3001.5,0.281]
[1766318583025,1.4076,3002.1,3001.5,0.281]
[1766318584429,0.002,3002.2,3001.5,0.281]
[1766318586431,1.415,3002.2,3001.5,0.281]
[1766318590204,0.002,3002.2,3001.5,0.281]
[1766318590534,0.002,3002.2,3001.5,0.282]
[1766318590923,0.002,3002.2,3001.5,0.001]
[1766318591124,0.002,3002.2,3001.6,0.282]
[1766318591709,1.415,3002.2,3001.6,0.282]
[1766318592209,0.002,3002.2,3001.6,0.282]
[1766318592538,1.413,3002.1,3001.6,0.282]
[1766318593436,1.413,3002.0,3001.6,0.282]
[1766318595003,0.002,3002.2,3001.6,0.282]
[1766318595207,1.415,3002.2,3001.6,0.282]
[1766318595404,0.002,3002.2,3001.6,0.282]
[1766318599847,1.3538,3002.1,3001.6,0.282]
[1766318602738,0.002,3002.2,3001.6,0.282]
[1766318604143,0.002,3002.2,3001.7,0.0250484]
[1766318604337,0.002,3002.2,3001.6,0.282]
[1766318604539,0.002,3002.2,3001.5,0.001]
[1766318604741,0.002,3002.2,3001.6,0.282]
[1766318606133,0.002,3002.3,3001.6,0.282]
[1766318606921,0.002,3002.2,3001.6,0.282]
[1766318622052,0.002,3002.3,3001.6,0.282]
[1766318622254,0.002,3002.5,3001.6,0.282]
[1766318622654,0.002,3002.5,3001.7,0.01332445]
[1766318622855,0.002,3002.6,3001.7,0.01332445]
[1766318623250,0.002,3002.6,3001.8,0.13344475]
[1766318623554,0.002,3002.2,3001.8,0.13344475]
[1766318625373,0.002,3002.6,3001.8,0.13344475]
[1766318633047,0.28405722,3003.3,3001.8,0.13344475]
[1766318633477,0.2,3004.2,3001.8,0.13344475]
[1766318633478,0.338,3003.6,3001.8,0.13344475]
[1766318633850,0.002,3003.4,3001.8,0.13344475]
[1766318635164,0.9712,3003.3,3001.8,0.13344475]
[1766318635363,0.9712,3003.1,3001.8,0.13344475]
[1766318635785,1.364,3003.1,3001.8,0.13344475]
[1766318636980,1.40562504,3003.0,3001.8,0.13344475]
[1766318638186,0.002,3003.1,3001.8,0.13344475]
[1766318638375,1.366,3003.1,3001.8,0.13344475]
[1766318638573,0.002,3003.1,3001.8,0.13344475]
[1766318638779,1.364,3003.0,3001.8,0.13344475]
[1766318639887,0.002,3003.1,3001.8,0.13344475]
[1766318640076,1.366,3003.1,3001.8,0.13344475]
[1766318641398,0.9712,3003.0,3001.8,0.13344475]
[1766318641565,1.364,3002.9,3001.9,0.271]
[1766318642195,1.364,3002.9,3002.0,0.271]
[1766318643268,0.9712,3002.5,3002.0,0.271]
[1766318644276,0.9712,3003.0,3002.0,0.271]
[1766318645399,0.3984,3002.9,3002.0,0.271]
[1766318645688,1.0223,3002.6,3002.0,0.271]
[1766318645894,0.3984,3002.7,3002.0,0.271]
[1766318646096,1.4207,3002.7,3002.0,0.271]
[1766318646594,1.0223,3002.8,3002.0,0.271]
[1766318646896,1.4207,3002.6,3002.0,0.271]
[1766318652378,0.002,3003.1,3002.0,0.271]
[1766318652696,0.3984,3002.5,3002.0,0.271]
[1766318652903,1.0223,3002.2,3002.0,0.271]
[1766318653090,1.4207,3002.2,3002.0,0.271]
[1766318653683,0.04162504,3003.0,3001.8,0.001]
[1766318653997,1.0223,3002.7,3001.8,0.272]
[1766318654199,1.0223,3002.3,3001.8,0.272]
[1766318654404,0.3984,3002.2,3001.8,0.272]
[1766318654605,1.0223,3002.1,3001.8,0.272]
[1766318654805,1.4207,3002.1,3001.8,0.272]
[1766318656821,1.4207,3002.7,3001.8,0.001]
[1766318657005,0.04163058,3002.6,3001.8,0.001]
[1766318657195,0.3984,3002.2,3001.8,0.001]
[1766318657382,1.4207,3002.0,3001.8,0.001]
[1766318658506,1.0223,3002.6,3001.8,0.001]
[1766318658687,1.0223,3002.4,3001.8,0.001]
[1766318658880,0.3984,3002.1,3001.8,0.001]
[1766318659079,0.04163474,3002.3,3001.8,0.001]
[1766318659080,1.4207,3002.0,3001.8,0.001]
[1766318660811,0.04163474,3002.3,3001.8,0.001]
[1766318661008,1.0223,3002.0,3001.8,0.001]
[1766318661212,1.4207,3001.9,3001.8,0.001]
[1766318662679,1.0223,3002.5,3001.8,0.001]
[1766318662877,0.45363,3002.4,3001.8,0.001]
[1766318663587,1.4207,3002.3,3001.8,0.001]
[1766318664504,0.3984,3002.2,3001.8,0.001]
[1766318664704,1.4207,3002.2,3001.8,0.001]
[1766318667089,0.45363,3002.4,3001.8,0.001]
[1766318667289,1.0223,3002.1,3001.8,0.001]
[1766318667499,1.4207,3002.1,3001.8,0.001]
[1766318669417,1.4207,3002.2,3001.8,0.001]
[1766318669816,0.3984,3002.1,3001.8,0.001]
[1766318670113,1.4207,3002.0,3001.8,0.001]
[1766318670709,0.04163474,3002.3,3001.8,0.001]
[1766318670884,0.04163474,3002.3,3001.5,0.273]
[1766318670885,0.4301,3002.1,3001.5,0.001]
[1766318671086,3.96763,3002.4,3001.5,0.001]
[1766318671087,0.4301,3001.7,3001.5,0.001]
[1766318671323,1.4315,3001.6,3001.5,0.001]
[1766318675925,1.4315,3001.6,3001.4,0.001]
[1766318680696,0.0436389,3002.0,3001.4,0.001]
[1766318680897,0.9916,3001.7,3001.4,0.001]
[1766318681211,1.4034,3001.5,3001.4,0.001]
[1766318689221,0.002,3001.6,3001.4,0.001]
[1766318698242,0.002,3001.6,3001.0,0.273]
[1766318698435,1.4034,3001.5,3001.0,0.273]
[1766318700741,0.002,3001.6,3001.0,0.273]
[1766318700930,1.4034,3001.5,3001.0,0.273]
[1766318701755,0.002,3001.6,3000.5,0.001]
[1766318701956,0.002,3001.6,3000.1,0.273]
[1766318701957,0.9916,3001.2,3000.1,0.273]
[1766318702156,0.4118,3000.7,3000.1,0.273]
[1766318702346,1.4034,3000.5,3000.1,0.273]
[1766318702523,0.273,3000.8,3000.1,0.273]
[1766318702850,1.4034,3000.6,2999.6,0.267]
[1766318703150,1.57104,3000.6,2999.6,0.54]
[1766318703352,1.57104,3000.6,2999.6,0.267]
[1766318703654,1.57104,3000.6,2999.6,0.807]
[1766318704357,1.57104,3000.6,2999.6,0.267]
[1766318704654,0.16764,3000.6,2999.6,1.074]
[1766318704831,0.338,3001.3,2999.7,0.01332445]
[1766318705037,1.3914,3001.3,3000.1,0.54]
[1766318705424,0.9697,3001.3,3000.1,0.54]
[1766318705655,0.9697,3001.1,3000.1,0.54]
[1766318705951,2.2694,3001.4,3000.1,0.54]
[1766318706253,0.22694,3001.3,3000.1,0.54]
[1766318706422,0.002,3001.6,3000.2,0.01332445]
[1766318706423,1.3934,3001.6,3000.2,0.01332445]
[1766318706857,1.3934,3001.6,3000.4,0.01332445]
[1766318708053,1.3934,3001.6,3000.5,0.54]
[1766318708265,1.3914,3001.5,3000.5,0.54]
[1766318709042,1.3914,3001.5,3000.6,0.02507505]
[1766318709247,0.002,3001.6,3000.6,0.02507505]
[1766318709553,0.17514,3001.6,3000.5,0.54]
[1766318709754,1.56654,3001.6,3000.5,0.54]
[1766318709963,0.17514,3001.6,3000.5,0.54]
[1766318710259,1.3914,3001.5,3000.5,0.54]
[1766318712565,1.3914,3001.5,3000.5,0.541]
[1766318713067,1.3914,3001.5,3000.5,0.001]
[1766318713266,1.3914,3001.5,3000.6,0.541]
[1766318714639,0.002,3001.6,3000.6,0.541]
[1766318715239,1.3934,3001.6,3000.6,0.541]
[1766318716340,1.3934,3001.6,3000.6,0.806]
[1766318716643,1.3934,3001.6,3000.6,0.265]
[1766318717070,1.3934,3001.6,3000.7,0.806]
[1766318721882,0.002,3001.6,3000.7,0.806]
[1766318723065,0.002,3001.6,3000.6,0.265]
[1766318723473,0.002,3001.6,3000.6,0.27832445]
[1766318731486,0.002,3002.0,3000.6,0.27832445]
[1766318731648,1.4005,3001.9,3000.6,0.27832445]
[1766318731849,1.57455,3001.9,3000.6,0.61632445]
[1766318732866,0.002,3002.0,3000.8,0.01332445]
[1766318733072,0.002,3002.0,3000.9,0.266]
[1766318733391,0.002,3001.6,3000.9,0.266]
[1766318734686,0.002,3001.6,3001.0,0.267]
[1766318735383,0.002,3001.6,3000.8,0.01332445]
[1766318735573,0.002,3001.6,3001.1,0.267]
[1766318739312,0.002,3001.6,3001.2,0.267]
[1766318739468,0.002,3002.2,3001.3,0.02506144]
[1766318739802,1.4171,3002.2,3001.3,0.14678301]
[1766318739973,1.4151,3002.1,3001.3,0.01332445]
[1766318740706,0.002,3001.6,3001.3,0.01332445]
[1766318744089,1.4151,3002.1,3001.3,0.54732445]
[1766318745307,1.4151,3002.1,3001.3,0.01332445]
[1766318746607,0.002,3002.2,3001.3,0.01332445]
[1766318748209,0.002,3002.9,3001.3,0.01332445]
[1766318748416,0.9895,3002.6,3001.3,0.01332445]
[1766318748580,1.4151,3002.6,3001.3,0.01332445]
[1766318748908,0.002,3002.1,3001.3,0.01332445]
[1766318749609,0.002,3002.1,3001.4,0.81432445]
[1766318750416,0.002,3002.1,3001.3,0.01332445]
[1766318751208,0.002,3002.1,3001.3,0.8276489]
[1766318753918,0.9895,3002.8,3001.3,0.8276489]
[1766318754119,1.4151,3002.6,3001.3,0.8276489]
[1766318755523,1.4151,3002.6,3001.3,0.01332445]
[1766318755699,1.4151,3002.6,3001.4,0.8276489]
[1766318756019,0.04362642,3002.9,3001.5,0.01332445]
[1766318756216,1.4151,3002.8,3001.5,0.01332445]
[1766318756601,1.4151,3002.8,3001.6,0.8276489]
[1766318757214,0.002,3002.1,3001.6,0.8276489]
[1766318757991,0.002,3002.9,3002.0,0.01332445]
[1766318758224,1.4171,3002.9,3002.1,0.268]
[1766318759129,1.4171,3002.9,3002.2,0.268]
[1766318760128,0.4256,3002.7,3002.0,0.01332445]
[1766318760341,0.002,3002.9,3002.0,0.01332445]
[1766318760342,0.002,3002.9,3002.1,0.268]
[1766318760625,0.002,3002.9,3002.2,0.268]
[1766318760923,1.4171,3002.9,3002.3,0.268]
[1766318764529,1.4171,3002.9,3002.1,0.268]
[1766318768331,0.002,3002.9,3002.1,0.268]
[1766318769602,1.4097,3002.9,3002.1,0.268]
[1766318771801,0.002,3002.9,3002.1,0.268]
[1766318772630,1.4097,3002.9,3002.1,0.268]
[1766318777125,0.002,3002.9,3002.1,0.268]
[1766318778809,0.002,3003.0,3002.1,0.268]
[1766318780001,0.002,3003.4,3002.1,0.268]
[1766318780202,0.002,3003.4,3002.2,0.01332445]
[1766318781213,0.002,3003.0,3002.2,0.01332445]
[1766318784420,0.002,3003.0,3002.3,0.9374225]
[1766318793428,0.002,3003.3,3002.3,0.9374225]
[1766318794537,1.4721,3003.3,3002.3,0.9374225]
[1766318794849,1.4701,3003.2,3002.3,0.9374225]
[1766318795053,0.002,3003.3,3002.3,0.9374225]
[1766318795365,1.4704,3003.2,3002.3,0.9374225]
[1766318795541,1.0423,3003.2,3002.3,0.9374225]
[1766318795742,1.4704,3003.1,3002.3,0.9374225]
[1766318800067,1.4704,3003.1,3002.4,0.267]
[1766318800267,0.002,3003.3,3002.4,0.267]
[1766318800761,0.002,3003.3,3002.5,0.267]
[1766318801067,1.4704,3003.1,3002.5,0.267]
[1766318807972,0.002,3003.3,3002.5,0.267]
[1766318808343,1.4704,3003.1,3002.5,0.267]
[1766318808545,0.04162504,3003.0,3002.5,0.267]
[1766318809077,0.002,3003.3,3002.5,0.267]
[1766318809385,1.4724,3003.3,3002.5,0.267]
[1766318809673,1.4704,3003.2,3002.5,0.534]
[1766318810048,0.01660881,3003.1,3002.5,0.534]
[1766318810772,1.4704,3003.2,3002.5,0.534]
[1766318812851,0.002,3003.3,3002.5,0.534]
[1766318813057,1.4724,3003.3,3002.5,0.534]
[1766318813678,1.15101655,3003.3,3002.5,0.534]
[1766318814147,0.4281,3003.3,3002.5,0.534]
[1766318815649,0.002,3003.5,3002.5,0.534]
[1766318819261,0.01660881,3003.8,3002.5,0.534]
[1766318819460,0.002,3003.9,3002.5,0.267]
[1766318819879,1.4704,3003.8,3002.6,0.13339981]
[1766318820273,1.0423,3003.8,3002.6,0.14672426]
[1766318820587,1.4704,3003.6,3002.6,0.14672426]
[1766318821250,0.002,3003.5,3002.6,0.14672426]
[1766318821567,0.002,3003.5,3002.6,0.13339981]
[1766318821765,0.01860881,3003.5,3002.6,0.13339981]
[1766318822077,1.4704,3003.4,3002.5,0.001]
[1766318822255,0.4281,3003.1,3002.5,0.13441849]
[1766318822459,1.48700881,3003.0,3002.5,0.13441849]
[1766318822856,1.4704,3002.9,3002.5,0.001]
[1766318823185,1.0423,3003.4,3002.5,0.001]
[1766318823481,0.4281,3002.9,3002.5,0.001]
[1766318823670,1.4704,3002.8,3002.5,0.001]
[1766318825278,0.002,3003.5,3002.5,0.001]
[1766318825451,1.482,3003.4,3002.5,0.001]
[1766318825782,0.4097,3002.9,3002.3,0.001]
[1766318825988,0.01660881,3003.3,3002.3,0.001]
[1766318826189,0.4097,3002.9,3002.3,0.001]
[1766318826351,0.4097,3002.7,3002.3,0.001]
[1766318826554,1.482,3002.5,3002.3,0.001]
[1766318829287,1.0723,3003.1,3002.3,0.001]
[1766318829495,1.0723,3002.9,3002.3,0.001]
[1766318829788,1.482,3002.7,3002.3,0.001]
[1766318831185,1.0723,3003.1,3002.3,0.001]
[1766318831387,0.4097,3002.8,3002.3,0.001]
[1766318831559,1.0723,3002.5,3002.3,0.001]
[1766318831760,1.482,3002.5,3002.3,0.001]
[1766318832608,1.0723,3002.9,3002.0,0.001]
[1766318832908,1.0723,3002.7,3001.6,0.13641849]
[1766318833073,1.0723,3002.3,3001.6,0.13641849]
[1766318833271,0.4097,3002.0,3001.2,0.001]
[1766318833610,1.482,3002.0,3001.4,0.13641849]
[1766318834605,1.0723,3002.7,3001.4,0.13641849]
[1766318837034,1.482,3002.5,3001.4,0.13641849]
[1766318837422,1.482,3002.5,3001.4,0.13741849]
[1766318840102,1.482,3002.5,3001.5,0.01332445]
[1766318841318,1.484,3002.8,3001.6,0.13741849]
[1766318841817,1.482,3002.7,3001.6,0.13741849]
[1766318842379,0.002,3002.8,3001.7,0.01332445]
[1766318843422,0.002,3002.8,3001.9,0.01332445]
[1766318843721,1.484,3002.8,3001.9,0.01332445]
[1766318843880,0.01660881,3002.7,3001.9,0.01332445]
[1766318844236,1.482,3002.7,3002.0,0.27632445]
[1766318844377,0.002,3002.8,3002.0,0.27632445]
[1766318844702,1.482,3002.7,3002.0,0.27632445]
[1766318844911,1.482,3002.7,3001.4,0.01432445]
[1766318845081,1.482,3002.7,3001.5,0.27632445]
[1766318845282,1.0723,3002.7,3001.5,0.27632445]
[1766318845519,0.4097,3002.6,3001.5,0.27632445]
[1766318845819,1.482,3002.5,3001.5,0.27632445]
[1766318847239,1.482,3002.5,3001.6,0.001]
[1766318847812,0.4097,3002.6,3001.7,0.27632445]
[1766318848030,1.482,3002.4,3001.7,0.27632445]
[1766318856540,1.431,3002.4,3001.7,0.27632445]
[1766318860044,0.002,3002.5,3001.7,0.27632445]
[1766318860250,1.433,3002.5,3001.7,0.27632445]
[1766318867860,1.431,3002.4,3001.7,0.27632445]
[1766318870427,0.002,3002.8,3001.8,0.01332445]
[1766318870628,1.433,3002.8,3002.1,0.01332445]
[1766318870828,0.01660881,3002.7,3002.0,0.261]
[1766318871029,1.431,3002.6,3002.0,0.2896489]
[1766318871349,0.002,3002.8,3002.0,0.2896489]
[1766318871543,1.431,3002.6,3002.0,0.2896489]
[1766318872070,1.433,3002.8,3002.0,0.2896489]